bitfinex/quotes_SOLUSD_20220306
["timestamp","ask_amount","ask_price","bid_price","bid_amount"]
[1646596683030,1.58018415,85.494,85.46,17.5575]
[1646596683232,8.415e-05,85.494,85.47,17.5506]
[1646596683441,17.5597,85.548,85.472,0.71796228]
[1646596683632,4.67973801,85.553,85.472,0.71796228]
[1646596683831,11.50030667,85.547,85.472,27.48640329]
[1646596684032,11.50030667,85.547,85.474,0.74574038]
[1646596684257,11.50030667,85.562,85.478,116.2]
[1646596684457,11.50030667,85.562,85.492,0.74574038]
[1646596684662,11.50030667,85.573,85.495,0.74574038]
[1646596684857,11.50030667,85.573,85.498,0.74574038]
[1646596685057,11.50030667,85.575,85.501,0.74574038]
[1646596685257,5.845,85.574,85.5,116.2]
[1646596685459,5.345,85.574,85.5,116.2]
[1646596685659,5.845,85.575,85.5,116.2]
[1646596685857,11.50030667,85.573,85.5,116.2]
[1646596686057,11.50030667,85.573,85.493,24.4072]
[1646596686058,5.845,85.572,85.494,116.2]
[1646596686259,17.5447,85.57,85.511,54.43420508]
[1646596686457,5.845,85.569,85.511,54.43420508]
[1646596686657,17.34530667,85.569,85.511,54.43420508]
[1646596687058,11.50030667,85.568,85.511,54.43420508]
[1646596687260,5.845,85.567,85.511,54.43420508]
[1646596687859,11.50030667,85.566,85.493,24.4072]
[1646596688060,5.845,85.565,85.493,24.4072]
[1646596688261,17.5469,85.56,85.493,24.4072]
[1646596688460,5.846,85.559,85.493,24.4072]
[1646596688661,17.34630667,85.559,85.493,24.4072]
[1646596688861,17.34630667,85.559,85.494,50.39207029]
[1646596689065,11.50030667,85.558,85.494,50.39207029]
[1646596689261,5.846,85.557,85.5,17.5472]
[1646596689863,11.50030667,85.556,85.5,17.5472]
[1646596690762,11.50030667,85.569,85.5,17.5472]
[1646596690964,11.50030667,85.569,85.501,5.845]
[1646596691362,11.50030667,85.569,85.51,17.5454]
[1646596695568,11.50030667,85.571,85.511,0.56059242]
[1646596695768,11.50030667,85.571,85.52,17.543]
[1646596695971,11.50030667,85.571,85.521,50.80953691]
[1646596696168,5.845,85.573,85.521,50.80953691]
[1646596696169,11.50030667,85.572,85.521,50.80953691]
[1646596696668,11.50030667,85.578,85.521,50.80953691]
[1646596696868,11.50030667,85.571,85.521,50.80953691]
[1646596697268,11.50030667,85.576,85.521,50.80953691]
[1646596697474,5.844,85.575,85.521,50.80953691]
[1646596697669,11.50030667,85.574,85.521,50.80953691]
[1646596697870,5.844,85.573,85.521,50.80953691]
[1646596698068,11.50030667,85.572,85.521,50.80953691]
[1646596698670,5.844,85.579,85.521,50.80953691]
[1646596698671,11.50030667,85.578,85.521,50.80953691]
[1646596698870,5.844,85.577,85.521,50.80953691]
[1646596699075,5.844,85.577,85.53,17.5416]
[1646596699273,11.50030667,85.578,85.53,17.5416]
[1646596699472,11.50030667,85.576,85.53,17.5416]
[1646596699873,5.844,85.584,85.53,17.5416]
[1646596699874,11.50030667,85.581,85.53,17.5416]
[1646596700078,5.844,85.58,85.53,17.5416]
[1646596700475,5.844,85.582,85.53,17.5416]
[1646596700675,11.50030667,85.579,85.53,17.5416]
[1646596701175,11.50030667,85.581,85.53,17.5416]
[1646596701376,5.844,85.584,85.522,23.4722]
[1646596701377,11.50030667,85.578,85.522,23.4722]
[1646596701878,11.50030667,85.579,85.523,5.844]
[1646596703578,5.844,85.578,85.523,5.844]
[1646596703780,5.844,85.578,85.522,23.4722]
[1646596703979,11.50030667,85.577,85.522,23.4722]
[1646596704179,11.50030667,85.577,85.522,29.3162]
[1646596704380,17.5427,85.58,85.522,29.3162]
[1646596704780,11.48354764,85.579,85.522,29.3162]
[1646596704982,11.48354764,85.579,85.522,23.4722]
[1646596705785,11.48354764,85.579,85.53,17.5422]
[1646596706388,5.844,85.578,85.53,17.5422]
[1646596706989,5.844,85.579,85.53,17.5422]
[1646596707190,11.47980065,85.577,85.53,17.5422]
[1646596707391,5.844,85.576,85.53,17.5422]
[1646596707795,5.844,85.579,85.53,17.5422]
[1646596710194,6.39585284,85.578,85.53,17.5422]
[1646596710417,5.844,85.577,85.53,17.5422]
[1646596710612,6.39585284,85.576,85.53,17.5422]
[1646596710812,5.844,85.575,85.53,17.5422]
[1646596711216,5.844,85.579,85.522,23.4722]
[1646596711415,17.5447,85.57,85.522,23.4722]
[1646596711813,5.844,85.577,85.522,23.4722]
[1646596712113,6.39626711,85.576,85.522,23.4722]
[1646596712313,5.844,85.575,85.522,23.4722]
[1646596712513,3.15027656,85.568,85.522,23.4722]
[1646596714216,3.15027656,85.566,85.522,23.4722]
[1646596715215,3.15027656,85.568,85.522,23.4722]
[1646596715815,3.15027656,85.567,85.522,23.4722]
[1646596716016,9.54654367,85.567,85.522,23.4722]
[1646596716316,9.54654367,85.566,85.522,23.4722]
[1646596716516,3.15027656,85.566,85.522,23.4722]
[1646596717919,8.99427656,85.566,85.522,23.4722]
[1646596718118,6.39626711,85.565,85.522,23.4722]
[1646596718516,3.15027656,85.565,85.522,23.4722]
[1646596719320,9.54654367,85.565,85.522,23.4722]
[1646596719523,3.15027656,85.566,85.53,17.5418]
[1646596719720,3.15027656,85.567,85.53,17.5418]
[1646596720124,3.15027656,85.571,85.53,17.5418]
[1646596720922,3.15027656,85.581,85.53,17.5418]
[1646596721123,3.15027656,85.581,85.531,0.49416308]
[1646596721323,3.15027656,85.581,85.54,17.5388]
[1646596721523,3.15027656,85.579,85.541,45.51688082]
[1646596721722,3.15027656,85.578,85.541,45.51688082]
[1646596721923,3.15027656,85.58,85.541,45.51688082]
[1646596722123,3.15027656,85.581,85.541,45.51688082]
[1646596724231,3.15027656,85.582,85.541,45.51688082]
[1646596724827,3.15027656,85.581,85.541,45.51688082]
[1646596725429,3.15027656,85.58,85.541,45.51688082]
[1646596725632,9.54534007,85.58,85.541,45.51688082]
[1646596726028,6.39506351,85.58,85.541,45.51688082]
[1646596726228,6.39506351,85.579,85.541,45.51688082]
[1646596726428,3.15027656,85.581,85.541,45.51688082]
[1646596727528,3.15027656,85.582,85.541,45.51688082]
[1646596728527,3.15027656,85.581,85.541,45.51688082]
[1646596729127,3.15027656,85.582,85.541,45.51688082]
[1646596729728,3.15027656,85.583,85.541,45.51688082]
[1646596729930,3.15027656,85.582,85.541,45.51688082]
[1646596730427,3.15027656,85.583,85.541,45.51688082]
[1646596730629,3.15027656,85.582,85.541,45.51688082]
[1646596731032,3.15027656,85.582,85.55,17.538]
[1646596731430,3.15027656,85.583,85.55,17.538]
[1646596732129,3.15027656,85.584,85.55,17.538]
[1646596733230,3.15027656,85.585,85.55,17.538]
[1646596733533,6.39506351,85.584,85.55,17.538]
[1646596733729,3.15027656,85.587,85.55,17.538]
[1646596735231,3.15027656,85.588,85.55,17.538]
[1646596735832,6.39506351,85.587,85.55,17.538]
[1646596736035,11.50128577,85.587,85.55,17.538]
[1646596736232,6.39506351,85.586,85.541,45.51688082]
[1646596736432,3.15027656,85.582,85.541,45.51688082]
[1646596736633,3.15027656,85.577,85.541,45.51688082]
[1646596736832,3.15027656,85.576,85.532,23.6319]
[1646596737032,3.15027656,85.575,85.532,23.6319]
[1646596737233,17.5448,85.57,85.51,17.5456]
[1646596737432,17.5448,85.57,85.508,24.6831]
[1646596737633,3.15027656,85.567,85.508,24.6831]
[1646596737833,3.15027656,85.566,85.513,57.99984254]
[1646596738233,11.50128577,85.565,85.513,57.99984254]
[1646596738434,6.39506351,85.564,85.513,57.99984254]
[1646596738736,12.24006351,85.564,85.513,57.99984254]
[1646596738933,11.50128577,85.563,85.513,57.99984254]
[1646596739134,6.39506351,85.562,85.513,57.99984254]
[1646596739337,6.39506351,85.562,85.51,17.5452]
[1646596739738,11.50128577,85.561,85.51,17.5452]
[1646596740038,23.94186351,85.56,85.51,17.5452]
[1646596740239,6.39506351,85.56,85.51,81.07063002]
[1646596740742,11.50128577,85.559,85.51,81.07063002]
[1646596741348,6.39506351,85.558,85.51,81.07063002]
[1646596741738,11.50128577,85.557,85.51,81.07063002]
[1646596742140,11.50128577,85.557,85.51,17.5452]
[1646596742539,17.34628577,85.563,85.51,17.5452]
[1646596742740,9.54715184,85.562,85.51,17.5452]
[1646596742940,11.50128577,85.561,85.51,17.5452]
[1646596743140,6.39687528,85.56,85.51,17.5452]
[1646596743340,17.34628577,85.559,85.51,17.5452]
[1646596743544,6.39687528,85.558,85.51,17.5452]
[1646596743743,5.845,85.557,85.51,17.5452]
[1646596743947,6.39687528,85.556,85.51,17.5452]
[1646596744164,5.845,85.555,85.51,17.5452]
[1646596744343,17.34628577,85.555,85.51,17.5452]
[1646596744743,11.50128577,85.554,85.51,17.5452]
[1646596744943,5.845,85.553,85.51,17.5452]
[1646596745545,11.50128577,85.552,85.51,17.5452]
[1646596745746,5.845,85.551,85.51,17.5452]
[1646596746145,11.50128577,85.552,85.51,17.5452]
[1646596746348,11.50128577,85.55,85.51,17.5452]
[1646596746745,11.50128577,85.56,85.51,17.5452]
[1646596746947,12.24189731,85.559,85.51,17.5452]
[1646596747147,6.39689731,85.558,85.51,17.5452]
[1646596747347,5.845,85.557,85.51,17.5452]
[1646596747548,6.39689731,85.556,85.51,17.5452]
[1646596747747,5.845,85.555,85.51,17.5452]
[1646596747956,17.34628577,85.555,85.51,17.5452]
[1646596748353,11.50128577,85.554,85.51,17.5452]
[1646596748754,11.50128577,85.554,85.479,24.68552623]
[1646596748955,5.846,85.553,85.48,23.7878]
[1646596749160,12.24331436,85.553,85.48,23.7878]
[1646596749355,6.39731436,85.552,85.48,23.7878]
[1646596749552,17.34728577,85.551,85.48,23.7878]
[1646596750053,17.89882981,85.55,85.484,62.51744713]
[1646596750253,5.846,85.549,85.484,62.51744713]
[1646596750454,17.5532,85.54,85.484,62.51744713]
[1646596750656,5.846,85.539,85.48,41.3386]
[1646596750855,11.50128577,85.539,85.471,24.3022]
[1646596751054,12.24554728,85.538,85.471,24.3022]
[1646596751254,6.39854728,85.537,85.471,24.3022]
[1646596751459,17.5529,85.53,85.471,24.3022]
[1646596751873,5.847,85.529,85.472,51.7447514]
[1646596752072,17.34828577,85.529,85.472,51.7447514]
[1646596752472,11.50128577,85.528,85.472,51.7447514]
[1646596752774,17.5563,85.52,85.471,24.3022]
[1646596752977,17.5563,85.52,85.463,24.1257]
[1646596752978,5.848,85.519,85.44,16.92]
[1646596753173,116.2,85.518,85.441,24.1257]
[1646596753373,116.2,85.516,85.441,24.1257]
[1646596753572,128.44962817,85.515,85.441,24.1257]
[1646596753773,17.5611,85.5,85.441,24.1257]
[1646596753972,5.849,85.499,85.442,47.8236317]
[1646596754172,5.849,85.509,85.442,47.8236317]
[1646596754572,116.2,85.507,85.442,47.8236317]
[1646596754772,116.2,85.505,85.442,47.8236317]
[1646596755073,116.2,85.505,85.441,24.1257]
[1646596755074,17.5616,85.49,85.441,24.1257]
[1646596755273,17.5616,85.49,85.41,75.4624]
[1646596755474,17.5616,85.49,85.42,17.5645]
[1646596755674,17.5616,85.49,85.421,24.5622]
[1646596755974,17.5645,85.48,85.421,24.5622]
[1646596756174,17.5645,85.48,85.422,60.19603001]
[1646596756773,5.851,85.479,85.422,60.19603001]
[1646596757574,5.851,85.479,85.421,24.5622]
[1646596757774,17.5659,85.47,85.421,24.5622]
[1646596758575,5.851,85.487,85.421,24.5622]
[1646596759776,17.5641,85.48,85.421,24.5622]
[1646596759976,5.851,85.479,85.421,24.5622]
[1646596760182,5.851,85.479,85.42,68.94297742]
[1646596761080,5.851,85.479,85.421,116.2]
[1646596761279,23.5483,85.488,85.43,17.5578]
[1646596761483,5.849,85.487,85.431,0.56902018]
[1646596761982,5.849,85.487,85.423,116.2]
[1646596762179,5.849,85.487,85.424,0.49842008]
[1646596762578,5.849,85.487,85.43,17.5622]
[1646596763079,23.5483,85.488,85.43,17.5622]
[1646596763881,5.849,85.498,85.43,17.5622]
[1646596764079,5.849,85.498,85.431,0.51921173]
[1646596764280,5.849,85.498,85.44,17.5592]
[1646596767486,5.849,85.498,85.441,116.2]
[1646596767687,23.3723,85.512,85.45,34.474]
[1646596767886,5.849,85.511,85.451,77.08638974]
[1646596768086,5.849,85.511,85.452,116.2]
[1646596768286,5.849,85.511,85.453,0.7080218]
[1646596768486,28.2562725,85.54,85.455,116.2]
[1646596768690,28.2562725,85.54,85.46,17.5537]
[1646596768890,5.847,85.539,85.461,116.9080218]
[1646596769387,5.847,85.539,85.464,0.7080218]
[1646596770088,5.847,85.539,85.48,17.5513]
[1646596770289,5.847,85.539,85.481,61.2211153]
[1646596770488,5.847,85.539,85.482,0.7080218]
[1646596771187,17.5533,85.53,85.482,0.7080218]
[1646596771488,5.847,85.529,85.481,61.2211153]
[1646596772092,5.847,85.544,85.482,116.2]
[1646596772288,23.0816,85.545,85.483,0.5709114]
[1646596773090,23.0816,85.545,85.49,17.5501]
[1646596775692,5.846,85.544,85.49,17.5501]
[1646596776093,23.0816,85.545,85.49,17.5501]
[1646596776693,23.0816,85.545,85.491,5.846]
[1646596777095,17.551,85.54,85.49,17.5501]
[1646596777496,23.0816,85.545,85.49,17.5501]
[1646596778598,23.0816,85.545,85.491,5.846]
[1646596779599,17.551,85.54,85.491,5.846]
[1646596779803,17.551,85.54,85.483,5.846]
[1646596780601,17.551,85.54,85.482,22.5812]
[1646596780802,43.09847868,85.539,85.482,22.5812]
[1646596781003,17.5571,85.53,85.461,5.847]
[1646596781204,5.848,85.529,85.461,30.4237]
[1646596781403,5.848,85.529,85.462,49.69586842]
[1646596781601,30.85227115,85.538,85.463,5.848]
[1646596781803,6.39928808,85.537,85.463,5.848]
[1646596782001,17.5563,85.52,85.463,5.848]
[1646596782202,17.5563,85.52,85.462,49.69586842]
[1646596782903,17.5563,85.52,85.461,24.5767]
[1646596782904,147.05227115,85.519,85.457,5.848]
[1646596783104,17.5621,85.51,85.431,5.848]
[1646596783304,5.849,85.509,85.422,29.6186]
[1646596783507,22.9894,85.508,85.422,29.6186]
[1646596783704,5.849,85.507,85.422,29.6186]
[1646596783904,5.849,85.507,85.423,45.5881988]
[1646596784105,17.562,85.49,85.43,17.5617]
[1646596784705,116.2,85.489,85.43,17.5617]
[1646596784910,147.05227115,85.489,85.424,5.849]
[1646596785106,116.2,85.487,85.423,45.5881988]
[1646596785308,116.2,85.485,85.423,45.5881988]
[1646596785507,116.2,85.483,85.423,45.5881988]
[1646596785707,17.5673,85.47,85.423,45.5881988]
[1646596785907,5.851,85.469,85.423,45.5881988]
[1646596787317,17.5639,85.48,85.423,45.5881988]
[1646596789609,17.5639,85.48,85.424,5.851]
[1646596790209,5.851,85.479,85.416,5.851]
[1646596790411,17.5675,85.47,85.416,5.851]
[1646596790611,17.5675,85.47,85.415,23.7962]
[1646596791317,5.851,85.469,85.415,23.7962]
[1646596791611,17.5685,85.46,85.415,23.7962]
[1646596792411,5.852,85.459,85.415,23.7962]
[1646596797439,5.852,85.459,85.38,16.92]
[1646596797643,17.5698,85.45,85.381,24.2911]
[1646596798238,5.853,85.449,85.381,24.2911]
[1646596798437,5.853,85.449,85.397,56.02491019]
[1646596799441,5.853,85.459,85.397,56.02491019]
[1646596799640,5.852,85.462,85.4,34.4881]
[1646596799842,24.6937,85.463,85.401,0.50052068]
[1646596800041,24.6937,85.463,85.4,16.92]
[1646596800246,34.10272583,85.49,85.4,16.92]
[1646596800441,23.9089,85.489,85.401,24.6445]
[1646596800642,5.851,85.488,85.41,17.5644]
[1646596800840,5.851,85.488,85.41,34.4844]
[1646596801042,5.851,85.488,85.411,24.6703]
[1646596801641,5.851,85.488,85.43,17.5614]
[1646596801843,5.851,85.488,85.431,50.8680138]
[1646596802043,5.851,85.488,85.432,0.55839881]
[1646596802846,17.5637,85.48,85.421,24.6703]
[1646596803044,122.051,85.479,85.4,16.92]
[1646596803244,28.949,85.479,85.402,23.7495]
[1646596803444,57.19972583,85.479,85.402,23.7495]
[1646596803643,57.19972583,85.479,85.403,60.47775261]
[1646596803847,17.5699,85.46,85.403,60.47775261]
[1646596804045,5.852,85.459,85.402,23.7495]
[1646596805149,17.5696,85.45,85.402,23.7495]
[1646596806348,17.568,85.46,85.402,23.7495]
[1646596806549,116.2,85.458,85.38,16.92]
[1646596806757,116.2,85.458,85.32,3.17769958]
[1646596806758,116.2,85.456,85.37,16.92]
[1646596807056,1.56882769,85.455,85.371,23.2714]
[1646596807253,36.70427115,85.457,85.371,23.2714]
[1646596807254,1.56882769,85.452,85.371,23.2714]
[1646596807555,17.5737,85.44,85.381,49.17817048]
[1646596807754,5.853,85.439,85.381,49.17817048]
[1646596808153,116.2,85.448,85.381,49.17817048]
[1646596808654,116.2,85.446,85.381,49.17817048]
[1646596808953,116.2,85.444,85.371,23.2714]
[1646596809153,17.5741,85.43,85.371,23.2714]
[1646596809354,5.853,85.429,85.371,23.2714]
[1646596814157,17.5757,85.42,85.369,46.38774822]
[1646596814959,17.5757,85.42,85.362,22.8483]
[1646596815459,5.855,85.419,85.362,22.8483]
[1646596816059,5.855,85.419,85.363,51.18739469]
[1646596816961,17.5757,85.42,85.363,51.18739469]
[1646596819184,17.5757,85.42,85.362,22.8483]
[1646596819387,116.2,85.419,85.362,22.8483]
[1646596819585,116.2,85.419,85.351,22.9904]
[1646596819586,116.2,85.417,85.351,22.9904]
[1646596819785,17.5807,85.41,85.351,22.9904]
[1646596820186,5.855,85.409,85.351,22.9904]
[1646596820587,5.855,85.412,85.351,22.9904]
[1646596820792,17.5779,85.41,85.351,22.9904]
[1646596820989,5.855,85.409,85.351,22.9904]
[1646596821190,116.2,85.408,85.331,23.1802]
[1646596821389,116.2,85.408,77.846,0.03812]
[1646596821390,4.60204519,85.405,85.299,73.1664]
[1646596821590,1.56882769,85.4,85.299,73.1664]
[1646596821789,1.56882769,85.39,85.299,73.1664]
[1646596821989,17.5904,85.38,85.302,47.8443]
[1646596822191,122.057,85.389,85.302,47.8443]
[1646596822192,5.857,85.379,85.303,61.90390629]
[1646596822388,116.2,85.387,85.303,61.90390629]
[1646596822589,116.2,85.385,85.303,61.90390629]
[1646596822989,67.98624532,85.39,85.303,61.90390629]
[1646596822990,116.2,85.383,85.303,61.90390629]
[1646596823189,116.2,85.381,85.303,61.90390629]
[1646596823394,116.2,85.369,85.303,61.90390629]
[1646596823589,116.2,85.379,85.303,61.90390629]
[1646596823788,116.2,85.377,85.303,61.90390629]
[1646596823989,61.23334532,85.38,85.303,61.90390629]
[1646596823990,116.2,85.375,85.303,61.90390629]
[1646596824189,122.057,85.374,85.296,5.857]
[1646596824389,116.2,85.359,85.296,5.857]
[1646596824592,116.2,85.359,85.291,5.857]
[1646596824991,116.2,85.357,85.291,5.857]
[1646596825190,116.2,85.355,85.291,5.857]
[1646596825589,122.057,85.354,85.291,5.857]
[1646596826193,116.2,85.349,85.291,5.857]
[1646596826394,116.2,85.347,85.281,24.2234]
[1646596826593,116.2,85.345,85.281,24.2234]
[1646596826994,122.059,85.344,85.281,24.2234]
[1646596827395,122.059,85.344,85.262,5.859]
[1646596827396,116.2,85.339,85.262,5.859]
[1646596828094,116.2,85.337,85.251,23.5836]
[1646596828295,5.81581576,85.334,85.243,5.859]
[1646596828498,5.81581576,85.334,85.21,160.08938481]
[1646596828499,0.07274143,85.325,85.23,16.92]
[1646596828703,5.80315215,85.322,85.231,29.375]
[1646596828895,116.2,85.32,85.231,29.375]
[1646596829095,116.2,85.318,85.231,29.375]
[1646596829295,116.2,85.318,85.232,53.53084717]
[1646596829496,116.2,85.309,85.233,5.863]
[1646596829697,116.2,85.307,85.233,5.863]
[1646596829897,116.2,85.307,85.232,53.53084717]
[1646596830097,116.2,85.305,85.231,23.512]
[1646596830298,116.2,85.303,85.231,23.512]
[1646596830501,17.6043,85.29,85.231,23.512]
[1646596830903,5.864,85.289,85.231,23.512]
[1646596831109,116.2,85.297,85.231,23.512]
[1646596831399,116.2,85.295,85.231,23.512]
[1646596831599,116.2,85.293,85.231,23.512]
[1646596831798,5.864,85.294,85.231,23.512]
[1646596831999,5.864,85.297,85.231,23.512]
[1646596832199,5.864,85.307,85.231,23.512]
[1646596832401,5.863,85.317,85.232,5.863]
[1646596832600,2.60152259,85.328,85.232,5.863]
[1646596832601,2.60152259,85.328,85.26,111.48120547]
[1646596832901,4.10355181,85.361,85.26,111.48120547]
[1646596832902,116.2,85.364,85.27,34.5076]
[1646596833099,18.0057,85.351,85.271,100.11721704]
[1646596833299,5.861,85.324,85.271,100.11721704]
[1646596833499,17.5273,85.357,85.271,100.11721704]
[1646596833701,1.56882769,85.38,85.271,100.11721704]
[1646596834099,17.5913,85.35,85.28,17.5915]
[1646596834302,17.5913,85.35,85.281,23.3123]
[1646596834502,29.3022,85.369,85.281,23.3123]
[1646596834700,0.00274143,85.325,85.282,116.79282304]
[1646596834900,0.00274143,85.325,85.284,116.2]
[1646596835100,0.00274143,85.325,85.286,116.2]
[1646596835303,0.00274143,85.325,85.291,116.2]
[1646596835501,0.00274143,85.325,85.293,116.2]
[1646596835701,0.00274143,85.325,85.295,116.2]
[1646596835901,0.00274143,85.325,85.3,16.92]
[1646596836106,0.00274143,85.325,85.301,0.71447145]
[1646596836305,0.00274143,85.325,85.31,17.5847]
[1646596836503,0.00274143,85.325,85.311,24.10187145]
[1646596836707,0.00274143,85.325,85.312,5.86]
[1646596836904,0.00274143,85.325,85.313,0.71447145]
[1646596837104,0.00274143,85.325,85.314,5.86]
[1646596837324,0.00274143,85.325,85.315,116.91447145]
[1646596837506,0.00274143,85.325,85.316,122.06]
[1646596837706,0.00274143,85.325,85.321,116.2]
[1646596837915,0.00274143,85.325,85.323,116.91447145]
[1646596838108,0.00274143,85.325,85.324,122.06]
[1646596838910,0.00274143,85.325,85.324,5.86]
[1646596839107,0.00274143,85.325,85.323,5.859]
[1646596839505,0.00274143,85.325,85.3,17.5874]
[1646596839506,0.00274143,85.325,85.312,5.86]
[1646596839906,0.00274143,85.325,85.301,5.86]
[1646596840106,0.00274143,85.325,85.302,48.7134]
[1646596840306,0.00274143,85.325,85.303,5.86]
[1646596841106,0.00274143,85.325,85.302,48.7134]
[1646596842110,0.00274143,85.325,85.303,5.86]
[1646596842912,0.00274143,85.325,85.302,48.7134]
[1646596846116,0.00274143,85.325,85.311,0.50960374]
[1646596846316,0.00274143,85.325,85.311,116.70960374]
[1646596846518,0.00274143,85.325,85.311,0.50960374]
[1646596846919,0.00274143,85.325,85.31,34.5065]
[1646596847717,5.86,85.399,85.311,51.56936719]
[1646596847917,5.86,85.399,85.312,0.49555724]
[1646596848117,33.04228685,85.399,85.312,0.49555724]
[1646596848317,17.5833,85.39,85.311,51.56936719]
[1646596848519,116.2,85.388,85.312,22.9321]
[1646596848718,116.2,85.386,85.312,22.9321]
[1646596848918,1.56882769,85.382,85.312,22.9321]
[1646596849121,1.56882769,85.381,85.312,22.9321]
[1646596849317,5.857,85.38,85.312,22.9321]
[1646596849917,5.857,85.38,85.312,21.9321]
[1646596850117,17.5895,85.37,85.312,21.9321]
[1646596850318,5.857,85.369,85.312,21.9321]
[1646596852721,17.5893,85.36,85.312,21.9321]
[1646596852941,5.859,85.359,85.312,21.9321]
[1646596853343,7.42782769,85.363,85.312,21.9321]
[1646596853542,5.859,85.363,85.312,21.9321]
[1646596854546,17.5894,85.36,85.312,21.9321]
[1646596854744,5.859,85.359,85.312,21.9321]
[1646596856446,17.5894,85.36,85.312,21.9321]
[1646596857054,5.859,85.367,85.312,21.9321]
[1646596857248,5.857,85.372,85.313,0.60971086]
[1646596857447,1.56882769,85.375,85.313,0.60971086]
[1646596857647,1.56882769,85.375,85.313,116.80971086]
[1646596857849,1.56882769,85.378,85.313,126.55971086]
[1646596858049,1.56882769,85.388,85.32,17.5841]
[1646596858248,24.99222769,85.389,85.321,0.56042793]
[1646596858451,1.56882769,85.39,85.321,116.76042793]
[1646596858650,1.56882769,85.396,85.324,0.61976584]
[1646596858848,5.857,85.395,85.324,0.61976584]
[1646596859049,5.857,85.396,85.324,0.61976584]
[1646596859551,5.857,85.397,85.34,17.5801]
[1646596859750,5.856,85.398,85.341,60.21429112]
[1646596860852,5.856,85.4,85.341,60.21429112]
[1646596861153,24.4341,85.407,85.341,60.21429112]
[1646596861154,1.56882769,85.395,85.35,17.5783]
[1646596861351,9.00627656,85.42,85.35,17.5783]
[1646596861352,1.56882769,85.396,85.35,17.5783]
[1646596861552,1.56882769,85.401,85.35,34.4983]
[1646596861753,1.56882769,85.402,85.352,0.54546504]
[1646596861959,1.56882769,85.406,85.352,0.54546504]
[1646596862160,24.694,85.429,85.35,16.92]
[1646596862161,1.56882769,85.407,85.36,17.5739]
[1646596862554,1.56882769,85.41,85.36,17.5739]
[1646596862755,7.42382769,85.409,85.36,17.5739]
[1646596862955,1.56882769,85.406,85.36,17.5739]
[1646596863355,1.56882769,85.408,85.36,17.5739]
[1646596863656,7.42382769,85.407,85.36,17.5739]
[1646596863855,1.56882769,85.407,85.36,17.5739]
[1646596864459,1.56882769,85.407,85.361,116.2]
[1646596864659,1.56882769,85.412,85.37,17.57]
[1646596864857,1.56882769,85.416,85.371,49.73727339]
[1646596865061,1.56882769,85.422,85.372,116.2]
[1646596865258,1.56882769,85.431,85.373,0.60585539]
[1646596865461,1.56882769,85.435,85.373,0.60585539]
[1646596865657,1.56882769,85.436,85.381,116.2]
[1646596865857,1.56882769,85.44,85.391,116.2]
[1646596866059,1.56882769,85.445,85.401,116.2]
[1646596866258,1.56882769,85.45,85.402,62.98369456]
[1646596866458,1.56882769,85.454,85.403,116.2]
[1646596866659,1.56882769,85.455,85.41,17.5616]
[1646596866858,1.56882769,85.455,85.41,34.4816]
[1646596867166,1.56882769,85.468,85.41,34.4816]
[1646596867358,1.56882769,85.468,85.411,116.2]
[1646596867558,5.852,85.467,85.412,0.60585539]
[1646596867759,1.56882769,85.47,85.411,116.2]
[1646596867959,1.56882769,85.476,85.412,0.60585539]
[1646596868159,1.56882769,85.476,85.411,116.2]
[1646596868360,1.56882769,85.477,85.42,17.5603]
[1646596868560,1.56882769,85.477,85.421,116.2]
[1646596868761,1.56882769,85.478,85.421,116.2]
[1646596869164,1.56882769,85.49,85.421,116.2]
[1646596869362,1.56882769,85.496,85.421,116.2]